bitfinex-derivatives/quotes_BTCF0:USTF0_20210705
["timestamp","ask_amount","ask_price","bid_price","bid_amount"]
[1625499295270,0.24057544,33486.0,33483.0,0.01]
[1625499295369,0.24057544,33486.0,33482.0,7.544e-05]
[1625499295370,0.48520544,33486.0,33482.0,7.544e-05]
[1625499295476,0.54420544,33486.0,33468.0,0.6541]
[1625499295560,0.5,33485.0,33468.0,0.6541]
[1625499295958,0.559,33485.0,33468.0,0.6541]
[1625499296040,0.16486294,33477.0,33468.0,0.6541]
[1625499296158,0.41288294,33477.0,33468.0,0.6541]
[1625499296282,0.47188294,33477.0,33468.0,0.6541]
[1625499296371,0.41288294,33477.0,33442.0,0.69362259]
[1625499296443,0.53088294,33477.0,33442.0,0.69362259]
[1625499296546,0.057,33476.0,33442.0,0.69362259]
[1625499296675,0.057,33476.0,33442.0,1.67392259]
[1625499296804,0.057,33476.0,33442.0,1.73292259]
[1625499296881,0.116,33476.0,33443.0,0.0904]
[1625499297025,0.16475059,33474.0,33443.0,0.00392648]
[1625499297123,0.057,33473.0,33443.0,0.00392648]
[1625499297224,0.24057544,33452.0,33451.0,0.24057544]
[1625499297422,0.24057544,33452.0,33451.0,0.29957544]
[1625499297822,0.24057544,33452.0,33451.0,0.059]
[1625499297925,0.49184544,33452.0,33451.0,0.059]
[1625499299277,0.49184544,33452.0,33451.0,0.118]
[1625499300391,0.49184544,33452.0,33436.0,1.2522]
[1625499300509,0.60984544,33452.0,33436.0,1.2522]
[1625499300609,0.55084544,33452.0,33436.0,1.3112]
[1625499300695,0.49184544,33452.0,33436.0,1.3702]
[1625499300799,0.24057544,33452.0,33437.0,0.00392747]
[1625499300906,0.24057544,33452.0,33438.0,0.0908]
[1625499301078,0.24057544,33452.0,33438.0,0.118]
[1625499301191,0.24057544,33452.0,33438.0,0.618]
[1625499301307,0.24057544,33452.0,33451.0,0.24057544]
[1625499301397,0.9992,33468.0,33451.0,0.45632544]
[1625499301502,0.9992,33468.0,33451.0,0.51532544]
[1625499301628,1.0582,33468.0,33451.0,0.51532544]
[1625499301730,1.0582,33468.0,33451.0,0.57432544]
[1625499301896,0.9992,33468.0,33451.0,0.57432544]
[1625499302200,1.0582,33468.0,33451.0,0.57432544]
[1625499302284,0.059,33468.0,33451.0,0.57432544]
[1625499302797,0.58568251,33479.0,33452.0,0.00392617]
[1625499302901,0.49528251,33479.0,33452.0,0.00392617]
[1625499302997,0.118,33479.0,33452.0,0.12192617]
[1625499303232,0.118,33479.0,33453.0,0.5]
[1625499303332,0.24057544,33478.0,33477.0,0.24057544]
[1625499303432,0.29957544,33478.0,33477.0,0.57963544]
[1625499304384,0.24057544,33478.0,33477.0,0.57963544]
[1625499304885,0.24057544,33478.0,33477.0,0.63863544]
[1625499304997,0.24057544,33478.0,33477.0,0.57963544]
[1625499305692,0.24057544,33478.0,33477.0,0.63863544]
[1625499305843,0.24057544,33478.0,33477.0,0.57963544]
[1625499305943,0.24057544,33478.0,33477.0,0.63863544]
[1625499306545,0.24057544,33481.0,33477.0,0.63863544]
[1625499306645,0.24057544,33481.0,33477.0,0.69763544]
[1625499306746,0.9456,33484.0,33477.0,0.69763544]
[1625499306846,0.24057544,33485.0,33477.0,0.69763544]
[1625499307097,0.29957544,33485.0,33477.0,0.69763544]
[1625499307298,0.29957544,33485.0,33484.0,0.48115088]
[1625499307401,0.29957544,33485.0,33484.0,0.54015088]
[1625499307502,0.29957544,33485.0,33484.0,0.74760088]
[1625499307950,0.29957544,33485.0,33484.0,0.68860088]
[1625499308151,0.29957544,33485.0,33484.0,0.74760088]
[1625499308252,0.24057544,33485.0,33484.0,0.74760088]
[1625499308401,0.24057544,33485.0,33484.0,0.68860088]
[1625499308602,0.24057544,33485.0,33484.0,0.74760088]
[1625499309153,0.24057544,33485.0,33484.0,0.68860088]
[1625499309253,0.24057544,33485.0,33484.0,0.74760088]
[1625499314667,0.24057544,33485.0,33484.0,0.54015088]
[1625499315717,0.24057544,33485.0,33484.0,0.48115088]
[1625499317219,0.24057544,33485.0,33484.0,0.54015088]
[1625499319021,0.24057544,33485.0,33484.0,0.48115088]
[1625499319623,0.29957544,33485.0,33484.0,0.48115088]
[1625499319726,0.29957544,33485.0,33474.0,0.74057544]
[1625499319727,0.29957544,33485.0,33474.0,0.24057544]
[1625499320002,0.35857544,33485.0,33474.0,0.24057544]
[1625499321225,0.8541349,33485.0,33474.0,0.24057544]
[1625499321424,0.48115088,33475.0,33474.0,0.24057544]
[1625499321524,0.74588088,33475.0,33474.0,0.24057544]
[1625499324935,0.48115088,33475.0,33474.0,0.24057544]
[1625499325735,0.48115088,33475.0,33474.0,0.29957544]
[1625499326036,0.48115088,33475.0,33474.0,0.35857544]
[1625499326638,0.24057544,33481.0,33474.0,0.35857544]
[1625499326736,0.24057544,33481.0,33474.0,0.63432544]
[1625499327038,0.24057544,33481.0,33474.0,1.13432544]
[1625499327294,0.24057544,33481.0,33475.0,0.00391538]
[1625499327396,0.24057544,33481.0,33480.0,0.24057544]
[1625499327589,0.24057544,33481.0,33480.0,0.29957544]
[1625499328042,0.24057544,33481.0,33480.0,0.24057544]
[1625499328143,0.24057544,33481.0,33480.0,0.29957544]
[1625499328242,0.24057544,33481.0,33480.0,0.24057544]
[1625499328795,0.24057544,33481.0,33480.0,0.29957544]
[1625499329143,0.24057544,33481.0,33480.0,0.24057544]
[1625499329245,0.24057544,33481.0,33480.0,0.2444794]
[1625499329465,0.29957544,33481.0,33480.0,0.2444794]
[1625499329695,0.29957544,33481.0,33480.0,0.24057544]
[1625499331949,0.24057544,33481.0,33480.0,0.24057544]
[1625499332151,0.7414397,33481.0,33480.0,0.24057544]
[1625499332650,0.9518597,33481.0,33480.0,0.24057544]
[1625499332750,0.61800581,33481.0,33480.0,0.24057544]
[1625499333650,0.95182806,33481.0,33480.0,0.24057544]
[1625499334001,0.61800581,33481.0,33480.0,0.24057544]
[1625499334755,0.95174892,33481.0,33480.0,0.24057544]
[1625499335957,1.01074892,33481.0,33480.0,0.24057544]
[1625499336309,0.50999544,33481.0,33480.0,0.24057544]
[1625499336607,1.17692166,33481.0,33480.0,0.24057544]
[1625499337108,2.17693018,33481.0,33480.0,0.24057544]
[1625499337708,2.23593018,33481.0,33480.0,0.24057544]
[1625499339213,1.23592166,33481.0,33480.0,0.24057544]
[1625499340612,2.23645818,33481.0,33474.0,0.24057544]
[1625499341063,2.23645818,33481.0,33475.0,0.00390949]
[1625499341516,0.48115088,33476.0,33475.0,0.00390949]
[1625499341715,0.54015088,33476.0,33475.0,0.00390949]
[1625499343473,0.48115088,33476.0,33475.0,0.00390949]
[1625499347711,0.50113816,33478.0,33475.0,0.06290949]
[1625499347811,0.50113816,33478.0,33475.0,0.15210949]
[1625499347883,0.50113816,33478.0,33475.0,0.06290949]
[1625499347979,1.00168684,33481.0,33475.0,1.82015481]
[1625499347980,0.16738174,33481.0,33475.0,1.82015481]
[1625499348079,0.16738174,33481.0,33476.0,0.00390863]
[1625499348182,0.16738174,33481.0,33480.0,4.7707]
[1625499348281,0.16738174,33481.0,33480.0,5.04405]
[1625499348482,0.1674901,33483.0,33480.0,5.04405]
[1625499348581,0.1674901,33483.0,33480.0,5.04795651]
[1625499348932,0.50254222,33483.0,33481.0,0.00390649]
[1625499349135,0.50254222,33483.0,33481.0,0.06290649]
[1625499349481,0.50254222,33483.0,33482.0,0.09]
[1625499349584,0.50254222,33483.0,33482.0,0.87072632]
[1625499349684,0.50254222,33483.0,33482.0,0.87463256]
[1625499349783,0.50254222,33483.0,33482.0,0.93363256]
[1625499349983,0.50254222,33483.0,33482.0,0.84363256]
[1625499350486,0.50304631,33486.0,33482.0,1.54685899]
[1625499350785,0.50304631,33486.0,33483.0,0.0039059]
[1625499350889,0.1678615,33487.0,33484.0,0.70318752]
[1625499351087,0.1678615,33487.0,33484.0,0.76218752]
[1625499351286,0.1678615,33487.0,33485.0,0.00390599]
[1625499351389,0.50352615,33488.0,33485.0,0.76641939]
[1625499351488,0.50352615,33488.0,33485.0,0.82541939]
[1625499351587,0.50352615,33488.0,33487.0,0.48115088]
[1625499351688,0.50352615,33488.0,33487.0,0.70000088]
[1625499351788,0.50352615,33488.0,33487.0,0.75900088]
[1625499351888,0.33555531,33488.0,33487.0,0.75900088]
[1625499352087,0.33555531,33488.0,33487.0,0.76290671]
[1625499352249,0.50355493,33488.0,33487.0,0.76290671]
[1625499356353,0.16799962,33488.0,33487.0,0.76290671]
[1625499356706,0.50382526,33488.0,33487.0,0.76290671]
[1625499357610,0.16799962,33488.0,33487.0,0.76290671]
[1625499358011,0.50372678,33488.0,33487.0,0.76290671]
[1625499358112,0.50372678,33488.0,33487.0,0.75900088]
[1625499358460,0.67159646,33490.0,33487.0,0.75900088]
[1625499358461,0.67123293,33489.0,33487.0,0.75900088]
[1625499360266,0.67123293,33489.0,33487.0,1.25900088]
[1625499360366,0.67123293,33489.0,33487.0,0.75900088]
[1625499360466,0.67123293,33489.0,33487.0,1.25900088]
[1625499360666,0.33538539,33488.0,33487.0,1.25900088]
[1625499361020,0.33538539,33488.0,33487.0,1.26290699]
[1625499361125,0.33538539,33488.0,33487.0,0.76290699]
[1625499361233,0.50361933,33489.0,33487.0,1.46674423]
[1625499361567,0.50361933,33489.0,33487.0,1.46283812]
[1625499361718,0.503535,33488.0,33487.0,0.75900088]
[1625499361840,0.003535,33488.0,33487.0,0.75900088]
[1625499362067,0.003535,33488.0,33487.0,0.76290702]
[1625499362320,0.67144022,33491.0,33487.0,1.46674389]
[1625499362569,0.67144022,33491.0,33487.0,1.46283775]
[1625499362770,0.08413211,33489.0,33487.0,1.46283775]
[1625499363068,0.0842113,33488.0,33487.0,1.81495453]
[1625499363368,0.0842113,33488.0,33487.0,1.81886064]
[1625499363569,0.0842113,33488.0,33487.0,2.52282594]
[1625499364471,0.0842113,33488.0,33487.0,1.46687229]
[1625499365271,0.0842113,33488.0,33487.0,1.46296618]
[1625499367128,0.0842113,33488.0,33487.0,1.46687235]
[1625499367679,1.14942168,33490.0,33487.0,1.52587235]
[1625499367878,0.50529659,33490.0,33487.0,2.58163327]
[1625499367978,0.50529659,33490.0,33488.0,0.00390585]
[1625499368081,0.50529659,33490.0,33488.0,0.12190585]
[1625499368311,0.50556774,33493.0,33489.0,1.05567081]
[1625499368482,0.50556774,33493.0,33489.0,1.17757807]
[1625499368681,0.50556774,33493.0,33489.0,2.40903876]
[1625499368780,1.48692548,33494.0,33490.0,1.05944482]
[1625499368880,0.50572548,33494.0,33490.0,1.05944482]
[1625499368979,0.50572548,33494.0,33490.0,1.17744482]
[1625499369182,1.17980143,33497.0,33491.0,1.0551384]
[1625499369183,0.50569853,33495.0,33491.0,1.0551384]
[1625499369282,0.50569853,33495.0,33491.0,1.11804549]
[1625499369384,0.50569853,33495.0,33491.0,1.17704549]
[1625499369485,9.853e-05,33495.0,33491.0,1.17704549]
[1625499369583,9.853e-05,33495.0,33492.0,0.00390706]
[1625499369683,0.50574372,33496.0,33492.0,0.12190706]
[1625499369784,0.50574372,33496.0,33495.0,0.72172632]
[1625499369884,0.59127227,33497.0,33495.0,1.15628632]
[1625499370187,1.01155999,33498.0,33495.0,1.15628632]
[1625499370286,0.81755999,33498.0,33495.0,1.15628632]
[1625499370523,0.71855999,33498.0,33495.0,1.15628632]
[1625499370687,0.71855999,33498.0,33496.0,0.0039064]
[1625499370786,0.71855999,33498.0,33496.0,0.0629064]
[1625499370886,0.71855999,33498.0,33496.0,0.1219064]
[1625499370992,1.1806072,33502.0,33496.0,0.1219064]
[1625499371186,1.1806072,33502.0,33497.0,0.00390628]
[1625499371386,1.1806072,33502.0,33497.0,0.12190628]
[1625499371687,1.1806072,33502.0,33498.0,0.00390626]
[1625499371786,1.1806072,33502.0,33501.0,0.48115088]
[1625499371989,1.1806072,33502.0,33501.0,0.54015088]
[1625499372339,1.18177247,33505.0,33501.0,0.54015088]
[1625499372539,1.18177247,33505.0,33501.0,0.59915088]
[1625499372742,1.18102701,33507.0,33501.0,0.59915088]
[1625499373039,1.18102701,33507.0,33502.0,0.0039064]
[1625499373139,1.18102701,33507.0,33502.0,0.0629064]
[1625499373613,1.18102701,33507.0,33502.0,0.059]
[1625499373800,1.18102701,33507.0,33506.0,0.24057544]
[1625499373997,1.18032041,33508.0,33506.0,0.29957544]
[1625499374851,1.18012555,33509.0,33506.0,0.29957544]
[1625499375050,1.23912555,33509.0,33506.0,0.29957544]
[1625499375149,1.18012555,33509.0,33506.0,0.29957544]
[1625499375563,1.18005532,33508.0,33506.0,0.29957544]
[1625499375899,1.42011322,33510.0,33506.0,0.29957544]
[1625499376351,0.24057544,33510.0,33506.0,0.29957544]
[1625499377052,1.41999614,33510.0,33506.0,0.29957544]
[1625499377354,0.24057544,33510.0,33506.0,0.29957544]
[1625499377856,0.24057544,33510.0,33509.0,0.24057544]
[1625499378158,0.29957544,33510.0,33509.0,0.24057544]
[1625499378261,0.24057544,33510.0,33509.0,0.24057544]
[1625499378359,0.29957544,33510.0,33509.0,0.24057544]
[1625499379113,1.47775718,33510.0,33509.0,0.24057544]
[1625499379614,1.41875718,33510.0,33509.0,0.24057544]
[1625499380215,1.47775718,33510.0,33509.0,0.24057544]
[1625499380318,0.29957544,33510.0,33509.0,0.24057544]
[1625499382018,0.24057544,33510.0,33509.0,0.24057544]
[1625499383321,0.49160544,33510.0,33509.0,0.24057544]
[1625499386877,0.25103,33510.0,33509.0,0.24057544]
[1625499386977,1.17922762,33511.0,33509.0,0.24057544]
[1625499387227,1.17943067,33512.0,33509.0,0.24057544]
[1625499387478,1.23843067,33512.0,33509.0,0.24057544]
[1625499387828,1.23843067,33512.0,33511.0,0.24057544]
[1625499393167,2.58325215,33512.0,33511.0,0.24057544]
[1625499393598,1.23843067,33512.0,33511.0,0.24057544]
[1625499393890,1.47900611,33512.0,33511.0,0.24057544]
[1625499395445,1.49503324,33512.0,33511.0,0.24057544]
[1625499395645,2.84003347,33512.0,33511.0,0.24057544]
[1625499398050,3.14028347,33512.0,33511.0,0.24057544]
[1625499400960,4.14625904,33512.0,33511.0,0.24057544]
[1625499401410,4.20525904,33512.0,33511.0,0.24057544]
[1625499404016,5.71488456,33512.0,33511.0,0.24057544]
[1625499406271,5.71488456,33512.0,33509.0,0.24057544]
[1625499406571,3.52967485,33510.0,33509.0,0.24057544]
[1625499406672,3.58867485,33510.0,33509.0,0.24057544]
[1625499407075,3.60469376,33510.0,33509.0,0.24057544]
[1625499407325,3.66369376,33510.0,33509.0,0.24057544]
[1625499407527,5.17626453,33510.0,33509.0,0.24057544]
[1625499407976,5.41683997,33510.0,33509.0,0.24057544]
[1625499408176,5.41683997,33510.0,33506.0,0.24057544]
[1625499408276,5.41683997,33510.0,33504.0,0.24057544]
[1625499408477,5.41683997,33510.0,33496.0,0.24057544]
[1625499408676,0.01602001,33509.0,33496.0,0.24057544]
[1625499408776,0.07502001,33509.0,33496.0,0.24057544]
[1625499408877,0.16938635,33509.0,33501.0,0.00390574]
[1625499409075,1.51272571,33505.0,33501.0,0.00390574]
[1625499409176,1.81082571,33505.0,33497.0,0.00390594]
[1625499409277,1.86982571,33505.0,33497.0,0.00390594]
[1625499409478,0.01602108,33504.0,33497.0,0.00390594]
[1625499409576,0.13402108,33504.0,33497.0,0.00390594]
[1625499409678,3.5269825,33498.0,33497.0,0.00390594]
[1625499409779,3.8420425,33498.0,33497.0,0.00390594]
[1625499409978,4.45721492,33498.0,33496.0,0.24057544]
[1625499410228,4.44119338,33498.0,33496.0,0.24057544]
[1625499410338,4.44119338,33498.0,33495.0,0.9317]
[1625499410529,0.01602044,33497.0,33495.0,0.9317]
[1625499410649,0.13402044,33497.0,33495.0,0.9317]
[1625499411028,0.118,33497.0,33495.0,0.9317]
[1625499411131,3.52525487,33496.0,33495.0,0.9317]
[1625499411278,3.58425487,33496.0,33495.0,0.9317]
[1625499411729,3.64325487,33496.0,33495.0,0.9317]
[1625499411981,3.88383031,33496.0,33495.0,0.9317]
[1625499418647,2.54090005,33496.0,33495.0,0.9317]
[1625499419648,2.48190005,33496.0,33495.0,0.9317]
[1625499420819,2.48190005,33496.0,33495.0,1.15845]
[1625499421321,1.30681509,33496.0,33495.0,1.15845]
[1625499421620,1.24781509,33496.0,33495.0,1.15845]
[1625499421756,1.24781509,33496.0,33495.0,4.78655]
[1625499421959,1.30681509,33496.0,33495.0,4.84555]
[1625499422110,1.30681509,33496.0,33495.0,5.08612544]
[1625499422215,0.29957544,33496.0,33495.0,1.45802544]
[1625499422312,0.60767544,33496.0,33495.0,0.9907]
[1625499422409,0.60767544,33496.0,33495.0,0.9317]
[1625499422608,0.66667544,33496.0,33495.0,0.9317]
[1625499423013,2.85104853,33496.0,33495.0,0.9317]
[1625499423359,5.70283868,33496.0,33495.0,0.9317]
[1625499424010,2.17643683,33496.0,33495.0,0.9317]
[1625499424112,2.41701227,33496.0,33495.0,0.9317]
[1625499424214,5.93962909,33496.0,33495.0,0.9317]
[1625499425116,4.4298677,33496.0,33495.0,0.9317]
[1625499425616,5.9390514,33496.0,33495.0,0.9317]
[1625499426114,5.8800514,33496.0,33495.0,0.9317]
[1625499426215,5.9390514,33496.0,33495.0,0.9317]
[1625499427517,4.4298677,33496.0,33495.0,0.9317]
[1625499428018,6.61015448,33496.0,33495.0,0.9317]
[1625499429518,5.10078967,33496.0,33495.0,0.9317]
[1625499430786,6.60836877,33496.0,33495.0,0.9317]
[1625499431726,6.62436638,33496.0,33495.0,0.9317]
[1625499431930,6.60836877,33496.0,33495.0,0.9317]
[1625499432229,6.62436672,33496.0,33495.0,0.9317]
[1625499433128,6.62436672,33496.0,33495.0,0.8727]
[1625499433579,6.56536672,33496.0,33495.0,0.8727]
[1625499433932,6.56536672,33496.0,33485.0,0.24057544]
[1625499434029,6.62436672,33496.0,33485.0,0.24057544]
[1625499434232,0.76076088,33486.0,33485.0,0.24057544]
[1625499434331,1.43004261,33486.0,33485.0,0.24057544]
[1625499434431,1.54804261,33486.0,33485.0,0.24057544]
[1625499434982,2.55178845,33486.0,33485.0,0.24057544]
[1625499436036,2.49278845,33486.0,33485.0,0.24057544]
[1625499436136,1.48904261,33486.0,33485.0,0.24057544]
[1625499436536,1.48904261,33486.0,33485.0,0.24448585]
[1625499436740,1.54804261,33486.0,33485.0,0.24448585]
[1625499436837,1.54804261,33486.0,33485.0,0.24057544]
[1625499437087,1.48904261,33486.0,33485.0,0.24057544]
[1625499437188,1.54804261,33486.0,33485.0,0.24057544]
[1625499437388,1.48904261,33486.0,33485.0,0.24057544]
[1625499437587,1.48904261,33486.0,33485.0,0.24448586]
[1625499437738,1.54804261,33486.0,33485.0,0.24448586]
[1625499438040,2.55191181,33486.0,33485.0,0.24448586]
[1625499438840,2.55191181,33486.0,33485.0,0.00391042]
[1625499439290,2.55191181,33486.0,33483.0,0.00391031]
[1625499439489,1.54804261,33486.0,33483.0,0.00391031]
[1625499439940,0.67035885,33485.0,33483.0,0.00391031]
[1625499440140,0.72935885,33485.0,33483.0,0.00391031]
[1625499440341,0.24057544,33484.0,33483.0,0.00391031]
[1625499440544,0.29957544,33484.0,33483.0,0.00391031]
[1625499443802,0.50761544,33484.0,33483.0,0.00391031]
[1625499444153,0.50761544,33484.0,33479.0,0.00391028]
[1625499444258,0.50761544,33484.0,33479.0,0.01391028]
[1625499444356,0.24057544,33480.0,33479.0,0.01391028]
[1625499451723,0.24057544,33480.0,33479.0,0.07291028]
[1625499452173,0.24057544,33480.0,33479.0,0.01391028]
[1625499452622,0.29957544,33480.0,33479.0,0.01391028]
[1625499452875,0.24057544,33480.0,33479.0,0.01391028]
[1625499452978,0.29957544,33480.0,33479.0,0.01391028]
[1625499453126,0.24057544,33480.0,33479.0,0.01391028]
[1625499453228,0.29957544,33480.0,33479.0,0.01391028]
[1625499453327,0.24057544,33480.0,33479.0,0.01391028]
[1625499454378,0.24057544,33480.0,33479.0,0.07291028]
[1625499454481,0.24057544,33480.0,33479.0,0.01391028]
[1625499462850,0.74254294,33480.0,33479.0,0.01391028]
[1625499463200,0.74254294,33480.0,33479.0,0.31752028]
[1625499463300,0.74254294,33480.0,33479.0,0.37652028]
[1625499463851,0.24057544,33480.0,33479.0,0.37652028]
[1625499464205,0.24057544,33480.0,33479.0,0.31752028]
[1625499464301,0.24057544,33480.0,33479.0,0.30752028]
[1625499465103,0.24057544,33480.0,33479.0,0.36652028]
[1625499465353,0.24057544,33480.0,33479.0,0.00391028]
[1625499465756,0.74284201,33480.0,33479.0,0.00391028]
[1625499466103,0.24057544,33480.0,33479.0,0.00391028]
[1625499466655,1.41302866,33480.0,33479.0,0.00391028]
[1625499468116,2.41865905,33480.0,33479.0,0.53241497]
[1625499469471,2.41865905,33480.0,33479.0,0.00391028]
[1625499469920,1.41302866,33480.0,33479.0,0.53241645]
[1625499470522,1.41302866,33480.0,33479.0,0.59141645]
[1625499470622,1.41302866,33480.0,33479.0,0.83723645]
[1625499470722,1.41302866,33480.0,33479.0,0.77823645]
[1625499471023,1.41302866,33480.0,33479.0,1.48295299]
[1625499471325,1.41302866,33480.0,33479.0,1.54195299]
[1625499471624,1.41302866,33480.0,33479.0,1.60095299]
[1625499472028,0.24057544,33480.0,33479.0,3.89108571]
[1625499472475,0.24057544,33480.0,33479.0,5.30037322]
[1625499477839,0.50392438,33483.0,33479.0,5.30037322]
[1625499477972,0.67135333,33484.0,33479.0,5.30037322]
[1625499478205,0.67709943,33485.0,33480.0,0.09887429]
[1625499478217,0.67709943,33485.0,33480.0,0.59887429]
[1625499478299,0.58809943,33485.0,33480.0,0.59887429]
[1625499478375,0.36709943,33485.0,33481.0,0.02313028]
[1625499478463,0.29419943,33485.0,33481.0,0.02313028]
[1625499478545,0.05009943,33485.0,33481.0,0.02313028]
[1625499478661,1.16473008,33487.0,33482.0,0.02313065]
[1625499478741,1.04533008,33487.0,33483.0,0.0898]
[1625499478844,1.04533008,33487.0,33486.0,0.72172632]
[1625499478942,0.24057544,33504.0,33486.0,1.00215632]
[1625499478943,1.1789511,33498.0,33486.0,1.00215632]
[1625499479041,1.1789511,33498.0,33486.0,1.01252714]
[1625499479144,1.1789511,33498.0,33486.0,1.01644648]
[1625499479241,1.1789511,33498.0,33486.0,1.07544648]
[1625499479344,1.3481088,33501.0,33492.0,1.40956662]
[1625499479443,1.3481088,33501.0,33492.0,1.46856662]
[1625499479544,1.3481088,33501.0,33492.0,1.52756662]
[1625499479745,1.3481088,33501.0,33496.0,5.58602]
[1625499479843,1.3481088,33501.0,33496.0,5.64502]
[1625499479944,1.3481088,33501.0,33497.0,0.00391908]
[1625499480045,1.34864429,33502.0,33497.0,0.06291908]
[1625499480446,0.24057544,33504.0,33497.0,0.06291908]
[1625499480447,1.3482907,33501.0,33497.0,0.00391908]
[1625499480547,1.3482907,33501.0,33496.0,5.58602]
[1625499480746,1.3482907,33501.0,33496.0,5.64502]
[1625499480846,1.3482907,33501.0,33500.0,0.72172632]
[1625499481047,1.75696871,33504.0,33500.0,0.72172632]
[1625499481146,1.87496871,33504.0,33500.0,0.72172632]
[1625499481548,1.34797852,33501.0,33500.0,0.72172632]
[1625499481647,1.34797852,33501.0,33500.0,0.48115088]
[1625499481748,1.40697852,33501.0,33500.0,0.48115088]
[1625499482150,1.34797852,33501.0,33500.0,0.48115088]
[1625499482850,1.58855396,33501.0,33500.0,0.48115088]
[1625499487359,0.24057544,33501.0,33500.0,0.48115088]
[1625499487571,0.24057544,33501.0,33500.0,0.54015088]
[1625499487865,0.24057544,33501.0,33500.0,0.48115088]
[1625499488065,0.24057544,33501.0,33500.0,0.54015088]
[1625499492525,0.24057544,33501.0,33500.0,0.83619088]
[1625499494229,0.24057544,33501.0,33500.0,0.77719088]
[1625499494530,0.24057544,33501.0,33500.0,0.83619088]
[1625499494730,0.24057544,33501.0,33500.0,0.77719088]
[1625499494833,0.24057544,33501.0,33500.0,0.83619088]
[1625499495580,0.5776922,33501.0,33500.0,0.83619088]
[1625499498937,0.33711676,33501.0,33500.0,0.83619088]
[1625499500641,0.32491676,33501.0,33500.0,0.83619088]
[1625499501245,0.32491676,33501.0,33500.0,0.84011645]
[1625499501557,0.32491676,33501.0,33500.0,0.89911645]
[1625499501700,1.58760592,33507.0,33500.0,0.89911645]
[1625499501701,1.1789048,33506.0,33500.0,0.89911645]
[1625499502066,1.1789048,33506.0,33501.0,0.00392521]
[1625499502147,0.24057544,33507.0,33501.0,0.00392521]
[1625499502249,0.24057544,33507.0,33501.0,0.06292521]
[1625499502651,0.24057544,33507.0,33502.0,0.00392507]
[1625499502788,0.24057544,33511.0,33502.0,0.00392507]
[1625499502868,0.24057544,33511.0,33502.0,0.06292507]
[1625499503000,0.24057544,33511.0,33510.0,0.48115088]
[1625499503103,0.24057544,33511.0,33510.0,0.78310088]
[1625499504702,0.24057544,33515.0,33510.0,0.78310088]
[1625499505003,0.24057544,33515.0,33514.0,0.24057544]
[1625499505104,0.24057544,33515.0,33514.0,0.29957544]
[1625499505808,0.29957544,33515.0,33514.0,0.29957544]
[1625499506007,0.24057544,33515.0,33514.0,0.29957544]
[1625499506738,0.24057544,33515.0,33514.0,0.35857544]
[1625499506908,0.24057544,33515.0,33514.0,0.36243187]
[1625499507108,0.24057544,33515.0,33514.0,4.47403187]
[1625499507308,1.42060323,33523.0,33514.0,4.47403187]
[1625499507520,1.42060323,33523.0,33514.0,4.47017544]
[1625499507612,0.24057544,33523.0,33514.0,4.47017544]
[1625499508021,1.18089975,33526.0,33515.0,0.00385568]
[1625499508145,0.24057544,33527.0,33515.0,0.00385568]
[1625499508215,0.24057544,33527.0,33515.0,0.12185568]
[1625499508567,0.24057544,33527.0,33516.0,0.0038554]
[1625499508721,0.24057544,33527.0,33516.0,0.1218554]
[1625499509018,1.18270508,33531.0,33526.0,0.72172632]
[1625499509117,1.18270508,33531.0,33526.0,0.99218632]
[1625499509268,1.21927544,33532.0,33526.0,0.99218632]
[1625499509316,0.24057544,33532.0,33526.0,0.99218632]
[1625499509620,1.0128856,33533.0,33526.0,0.99218632]
[1625499509718,1.01348984,33535.0,33526.0,0.99218632]
[1625499509817,1.01348984,33535.0,33526.0,1.05118632]
[1625499510218,1.01422331,33537.0,33526.0,1.05118632]
[1625499510318,0.059,33535.0,33526.0,1.05118632]
[1625499510919,0.059,33535.0,33526.0,1.06118632]
[1625499511018,0.059,33535.0,33534.0,0.48115088]
[1625499511119,0.059,33535.0,33534.0,0.72388088]
[1625499511219,0.059,33535.0,33534.0,0.78288088]
[1625499512371,0.22782965,33535.0,33534.0,0.78288088]
[1625499513022,0.46840509,33535.0,33534.0,0.78288088]
[1625499513223,0.46840509,33535.0,33534.0,0.54015088]
[1625499513674,0.29957544,33535.0,33534.0,0.54015088]
[1625499517080,0.46801746,33535.0,33534.0,0.54015088]
[1625499517682,0.29957544,33535.0,33534.0,0.54015088]
[1625499519182,0.24057544,33535.0,33534.0,0.54015088]
[1625499519584,0.16847158,33537.0,33534.0,0.54015088]
[1625499519786,0.16845284,33538.0,33534.0,0.54015088]
[1625499520234,0.22745284,33538.0,33534.0,0.54015088]
[1625499520689,0.059,33538.0,33534.0,0.54015088]
[1625499520787,0.059,33538.0,33534.0,0.059]
[1625499521088,0.22735088,33538.0,33534.0,0.059]
[1625499521237,0.22735088,33538.0,33537.0,0.48115088]
[1625499521437,0.22735088,33538.0,33537.0,0.54015088]
[1625499521738,0.16835088,33538.0,33537.0,0.54015088]
[1625499521941,0.16838762,33539.0,33537.0,0.54015088]
[1625499522740,0.22738762,33539.0,33537.0,0.54015088]
[1625499522841,0.22738762,33539.0,33537.0,0.48115088]
[1625499522941,0.22738762,33539.0,33537.0,0.54015088]
[1625499523142,0.22738762,33539.0,33537.0,0.48115088]
[1625499523303,0.22738762,33539.0,33537.0,0.54015088]
[1625499524098,0.16838762,33539.0,33537.0,0.54015088]
[1625499524398,0.22738762,33539.0,33537.0,0.54015088]
[1625499524701,0.059,33539.0,33537.0,0.54015088]
[1625499525453,0.16845541,33540.0,33537.0,0.54015088]
[1625499525553,0.059,33539.0,33537.0,0.54015088]
[1625499525704,0.059,33539.0,33537.0,0.48115088]
[1625499525902,0.059,33539.0,33537.0,0.54015088]
[1625499526303,0.059,33539.0,33537.0,0.48115088]
[1625499526503,0.059,33539.0,33537.0,0.54015088]
[1625499526912,0.24057544,33541.0,33537.0,0.54015088]
[1625499526913,0.16853032,33540.0,33537.0,0.54015088]
[1625499527554,0.22753032,33540.0,33537.0,0.54015088]
[1625499529411,0.16860984,33539.0,33537.0,0.54015088]
[1625499529510,0.22760984,33539.0,33537.0,0.54015088]
[1625499530311,0.22760984,33539.0,33537.0,0.059]
[1625499531262,0.22760984,33539.0,33538.0,0.48115088]
[1625499531362,0.22760984,33539.0,33538.0,0.54015088]
[1625499532615,0.24381849,33539.0,33538.0,0.54015088]
[1625499533318,0.07520865,33539.0,33538.0,0.54015088]
[1625499537723,0.01620865,33539.0,33538.0,0.54015088]
[1625499538074,0.18485853,33539.0,33538.0,0.54015088]
[1625499538374,0.24385853,33539.0,33538.0,0.54015088]
[1625499539825,0.18485853,33539.0,33538.0,0.54015088]
[1625499540533,0.24385853,33539.0,33538.0,0.54015088]
[1625499541532,0.48443397,33539.0,33538.0,0.48115088]
[1625499541771,0.48443397,33539.0,33530.0,0.24057544]
[1625499541999,0.48443397,33539.0,33526.0,0.24057544]
[1625499542000,0.54343397,33539.0,33526.0,0.24057544]
[1625499542052,3.27137957,33539.0,33526.0,0.24057544]
[1625499542232,0.05153032,33538.0,33526.0,0.24057544]
[1625499542330,0.11053032,33538.0,33526.0,0.24057544]